[Event "HUN-ch U8-U18 2019"]
[Site "Balatonlelle"]
[Date "2019.06.22"]
[Round "2.16"]
[White "Pater, Peter"]
[Black "Nemeth, Zeteny"]
[Result "1-0"]
[ECO "A65"]
[WhiteElo "1901"]
[BlackElo "1285"]
[Annotator "NA"]
[PlyCount "89"]
[EventDate "2019.06.21"]
[EventType "swiss"]
[EventCountry "HUN"]
[SourceTitle "playchess.com"]
[Source "ChessBase"]
[SourceQuality "1"]
[TimeControl "40/5400+30:1800+30"]

1. d4 {[%emt 0:00:04]} Nf6 {[%emt 0:00:39]} 2. c4 {[%emt 0:00:11]} c5 {[%emt 0:00:10]} 3. d5 {[%emt 0:00:10]} e6 {[%emt 0:01:16]} 4. Nc3 {[%emt 0:00:14]} exd5 {[%emt 0:00:19]} 5. cxd5 {[%emt 0:00:16]} d6 {[%emt 0:00:27]} 6. e4 {[%emt 0:00:57]} g6 {[%emt 0:00:54]} 7. Bg5 {[%emt 0:04:40]} Bg7 {[%emt 0:02:29]} 8. Bb5+ {[%emt 0:08:05]} Bd7 {[%emt 0:06:32]} 9. Bd3 {[%emt 0:00:11]} O-O {[%emt 0:01:47]} 10. Qd2 {[%emt 0:04:45]} Re8 {[%emt 0:05:30]} 11. Nge2 {[%emt 0:05:41]} Na6 {[%emt 0:05:53]} 12. O-O {[%emt 0:07:37]} Nc7 {[%emt 0:05:43]} 13. a4 {[%emt 0:01:07]} a6 {[%emt 0:02:53]} 14. a5 {[%emt 0:10:20]} Bb5 {[%emt 0:08:20]} 15. Ng3 {[%emt 0:24:28]} Qd7 {[%emt 0:03:06]} 16. Rae1 {[%emt 0:11:39]} Ng4 {[%emt 0:04:08]} 17. h3 {[%emt 0:12:49]} Ne5 {[%emt 0:00:48]} 18. Nxb5 {[%emt 0:01:34]} Nxb5 {[%emt 0:00:39]} 19. f4 {[%emt 0:00:11]} Nxd3 {[%emt 0:00:30]} 20. Qxd3 {[%emt 0:00:08]} Qc7 {[%emt 0:01:45]} 21. f5 {[%emt 0:03:10]} c4 {[%emt 0:05:31]} 22. Qf3 {[%emt 0:01:13]} Nd4 {[%emt 0:00:54]} 23. Qg4 {[%emt 0:00:15]} h6 {[%emt 0:02:02]} 24. Be3 {[%emt 0:01:06]} Nc2 {[%emt 0:00:39]} 25. f6 {[%emt 0:00:48]} Bf8 {[%emt 0:02:00]} 26. Nf5 {[%emt 0:00:40]} h5 {[%emt 0:01:26]} 27. Qg5 {[%emt 0:00:36]} Nxe3 {[%emt 0:00:36]} 28. Rxe3 {[%emt 0:00:25]} Kh7 {[%emt 0:00:38]} 29. Rg3 {[%emt 0:00:34]} Rxe4 {[%emt 0:02:48]} 30. Ne7 {[%emt 0:00:33]} Bxe7 {[%emt 0:02:28]} 31. fxe7 {[%emt 0:00:08]} Qxe7 {[%emt 0:00:29]} 32. Qd2 {[%emt 0:00:50]} Kg7 {[%emt 0:01:02]} 33. Rgf3 {[%emt 0:00:10]} Rf8 {[%emt 0:00:34]} 34. Qc2 {[%emt 0:00:38]} Qe5 {[%emt 0:00:38]} 35. Qf2 {[%emt 0:00:43]} Qxd5 {[%emt 0:00:36]} 36. Kh1 {[%emt 0:00:26]} Re7 {[%emt 0:00:46]} 37. Rf6 {[%emt 0:00:33]} Qxa5 {[%emt 0:04:34]} 38. Rxg6+ {[%emt 0:00:11]} Kxg6 {[%emt 0:02:16]} 39. Qf6+ {[%emt 0:00:07]} Kh7 {[%emt 0:00:09]} 40. Qxe7 {[%emt 0:00:00]} Kg8 {[%emt 0:00:00]} 41. Qxd6 {[%emt 0:03:41]} Qb5 {[%emt 0:06:55]} 42. Qf6 {[%emt 0:03:45]} Kh7 {[%emt 0:03:17]} 43. Rf5 {[%emt 0:00:52]} Qc6 {[%emt 0:00:37]} 44. Rxh5+ {[%emt 0:00:08]} Kg8 {[%emt 0:00:13]} 45. Rh8# 1-0

[Event "HUN-ch U8-U18 2019"]
[Site "Balatonlelle"]
[Date "2019.06.22"]
[Round "2.17"]
[White "Udvardi, Zalan"]
[Black "Vodila, Martin Botond"]
[Result "1-0"]
[ECO "B01"]
[WhiteElo "2211"]
[BlackElo "2243"]
[Annotator "NA"]
[PlyCount "57"]
[EventDate "2019.06.21"]
[EventType "swiss"]
[EventCountry "HUN"]
[SourceTitle "playchess.com"]
[Source "ChessBase"]
[SourceQuality "1"]
[TimeControl "40/5400+30:1800+30"]

1. e4 {[%emt 0:00:02]} d5 {[%emt 0:00:41]} 2. exd5 {[%emt 0:06:17]} Qxd5 {[%emt 0:00:09]} 3. Nc3 {[%emt 0:00:18]} Qa5 {[%emt 0:00:17]} 4. d4 {[%emt 0:00:12]} Nf6 {[%emt 0:00:07]} 5. Nf3 {[%emt 0:00:27]} c6 {[%emt 0:00:06]} 6. Bd2 {[%emt 0:08:37]} Bf5 {[%emt 0:00:39]} 7. Bc4 {[%emt 0:17:31]} e6 {[%emt 0:00:58]} 8. Ne2 {[%emt 0:02:31]} Qb6 {[%emt 0:00:44]} 9. Ng3 {[%emt 0:09:29]} Bg6 {[%emt 0:10:23]} 10. O-O {[%emt 0:04:51]} Nbd7 {[%emt 0:03:24]} 11. Qe2 {[%emt 0:06:02]} O-O-O {[%emt 0:21:17]} 12. a4 {[%emt 0:05:17]} Bd6 {[%emt 0:02:55]} 13. b4 {[%emt 0:03:23]} h5 {[%emt 0:04:01]} 14. Rfb1 {[%emt 0:01:53]} h4 {[%emt 0:00:30]} 15. Nf1 {[%emt 0:01:28]} h3 {[%emt 0:05:12]} 16. g3 {[%emt 0:11:42]} Bh5 {[%emt 0:11:14]} 17. a5 {[%emt 0:07:00]} Qc7 {[%emt 0:01:33]} 18. b5 {[%emt 0:03:58]} cxb5 {[%emt 0:02:11]} 19. Bxb5 {[%emt 0:00:07]} a6 {[%emt 0:23:35]} 20. Bxa6 {[%emt 0:02:33]} Bxf3 {[%emt 0:00:59]} 21. Qxf3 {[%emt 0:00:55]} bxa6 {[%emt 0:00:07]} 22. Rb3 {[%emt 0:01:20]} Nd5 {[%emt 0:01:47]} 23. c4 {[%emt 0:00:16]} N5f6 {[%emt 0:01:52]} 24. Rab1 {[%emt 0:01:18]} Nb8 {[%emt 0:06:32]} 25. c5 {[%emt 0:00:55]} Nd5 {[%emt 0:00:19]} 26. cxd6 {[%emt 0:00:17]} Rxd6 {[%emt 0:00:02]} 27. Rxb8+ {[%emt 0:00:48]} Qxb8 {[%emt 0:00:06]} 28. Rxb8+ {[%emt 0:00:10]} Kxb8 {[%emt 0:00:04]} 29. Qxf7 {[%emt 0:00:33]} 1-0

[Event "HUN-ch U8-U18 2019"]
[Site "Balatonlelle"]
[Date "2019.06.21"]
[Round "2.17"]
[White "Tancsa, Tamas"]
[Black "Turcsanyi, Vince Gergo"]
[Result "1-0"]
[ECO "C72"]
[WhiteElo "2158"]
[BlackElo "1816"]
[Annotator "NA"]
[PlyCount "71"]
[EventDate "2019.06.21"]
[EventType "swiss"]
[EventCountry "HUN"]
[SourceTitle "playchess.com"]
[Source "ChessBase"]
[SourceQuality "1"]
[TimeControl "40/5400+30:1800+30"]

1. e4 {[%emt 0:00:02]} e5 {[%emt 0:00:20]} 2. Nf3 {[%emt 0:00:09]} Nc6 {[%emt 0:00:11]} 3. Bb5 {[%emt 0:00:12]} a6 {[%emt 0:00:09]} 4. Ba4 {[%emt 0:00:05]} d6 {[%emt 0:00:51]} 5. O-O {[%emt 0:00:25]} Bd7 {[%emt 0:01:01]} 6. c3 {[%emt 0:01:43]} g6 {[%emt 0:01:03]} 7. d4 {[%emt 0:00:34]} Bg7 {[%emt 0:01:11]} 8. Be3 {[%emt 0:10:08]} Nge7 {[%emt 0:05:41]} 9. Bb3 {[%emt 0:10:12]} h6 {[%emt 0:06:14]} 10. Ne1 {[%emt 0:01:20]} O-O {[%emt 0:18:21]} 11. f4 {[%emt 0:00:48]} exf4 {[%emt 0:13:48]} 12. Bxf4 {[%emt 0:01:06]} Na5 {[%emt 0:04:00]} 13. Bc2 {[%emt 0:02:02]} d5 {[%emt 0:09:06]} 14. Nd2 {[%emt 0:12:00]} dxe4 {[%emt 0:05:19]} 15. Nxe4 {[%emt 0:01:51]} Nd5 {[%emt 0:02:00]} 16. Bc1 {[%emt 0:01:44]} Bf5 {[%emt 0:03:23]} 17. Rxf5 {[%emt 0:07:33]} gxf5 {[%emt 0:00:30]} 18. Ng3 {[%emt 0:00:06]} f4 {[%emt 0:04:09]} 19. Nh5 {[%emt 0:05:55]} Qg5 {[%emt 0:06:30]} 20. Qf3 {[%emt 0:00:38]} Rfe8 {[%emt 0:05:32]} 21. Bxf4 {[%emt 0:02:37]} Nxf4 {[%emt 0:01:15]} 22. Nxf4 {[%emt 0:00:08]} Nc4 {[%emt 0:01:33]} 23. Ned3 {[%emt 0:00:47]} c6 {[%emt 0:01:40]} 24. Qf2 {[%emt 0:01:25]} Ne3 {[%emt 0:03:22]} 25. Bb3 {[%emt 0:01:09]} Ng4 {[%emt 0:01:06]} 26. Qf1 {[%emt 0:00:00]} Re7 {[%emt 0:01:29]} 27. h3 {[%emt 0:01:13]} Nf6 {[%emt 0:02:19]} 28. Ne5 {[%emt 0:02:31]} Kf8 {[%emt 0:00:29]} 29. Bxf7 {[%emt 0:00:26]} Rxe5 {[%emt 0:00:57]} 30. dxe5 {[%emt 0:00:08]} Kxf7 {[%emt 0:00:09]} 31. exf6 {[%emt 0:00:14]} Bxf6 {[%emt 0:00:03]} 32. Qc4+ {[%emt 0:00:14]} Ke8 {[%emt 0:00:40]} 33. Re1+ {[%emt 0:01:08]} Kd7 {[%emt 0:01:09]} 34. Qf7+ {[%emt 0:03:16]} Be7 {[%emt 0:00:34]} 35. Rd1+ {[%emt 0:00:19]} Kc8 {[%emt 0:00:15]} 36. Ne6 {[%emt 0:00:24]} 1-0

[Event "HUN-ch U8-U18 2019"]
[Site "Balatonlelle"]
[Date "2019.06.22"]
[Round "2.18"]
[White "Barasits, Balint"]
[Black "Miszler, Levente"]
[Result "0-1"]
[ECO "C06"]
[WhiteElo "2022"]
[BlackElo "2041"]
[Annotator "NA"]
[PlyCount "113"]
[EventDate "2019.06.21"]
[EventType "swiss"]
[EventCountry "HUN"]
[SourceTitle "playchess.com"]
[Source "ChessBase"]
[SourceQuality "1"]
[TimeControl "40/5400+30:1800+30"]

1. e4 {[%emt 0:00:02]} e6 {[%emt 0:00:10]} 2. d4 {[%emt 0:00:04]} d5 {[%emt 0:00:06]} 3. Nd2 {[%emt 0:00:21]} Nf6 {[%emt 0:00:07]} 4. e5 {[%emt 0:00:06]} Nfd7 {[%emt 0:00:06]} 5. Bd3 {[%emt 0:00:20]} c5 {[%emt 0:00:06]} 6. c3 {[%emt 0:00:07]} Nc6 {[%emt 0:00:06]} 7. Ne2 {[%emt 0:00:14]} cxd4 {[%emt 0:00:14]} 8. cxd4 {[%emt 0:00:13]} f6 {[%emt 0:00:06]} 9. exf6 {[%emt 0:00:33]} Nxf6 {[%emt 0:00:07]} 10. Nf3 {[%emt 0:01:26]} Bd6 {[%emt 0:00:06]} 11. O-O {[%emt 0:02:06]} O-O {[%emt 0:00:12]} 12. Nc3 {[%emt 0:23:53]} Qe8 {[%emt 0:10:50]} 13. h3 {[%emt 0:14:24]} e5 {[%emt 0:05:25]} 14. dxe5 {[%emt 0:01:29]} Nxe5 {[%emt 0:00:09]} 15. Nxe5 {[%emt 0:00:36]} Qxe5 {[%emt 0:00:47]} 16. f4 {[%emt 0:00:09]} Bc5+ {[%emt 0:02:14]} 17. Kh1 {[%emt 0:00:58]} Qd6 {[%emt 0:00:58]} 18. Qf3 {[%emt 0:06:22]} Bd7 {[%emt 0:03:24]} 19. f5 {[%emt 0:06:10]} Bc6 {[%emt 0:03:50]} 20. Bf4 {[%emt 0:01:14]} Qd7 {[%emt 0:00:40]} 21. Be5 {[%emt 0:08:07]} Rae8 {[%emt 0:06:17]} 22. Bxf6 {[%emt 0:06:17]} Re3 {[%emt 0:02:35]} 23. Qf4 {[%emt 0:10:06]} Rxd3 {[%emt 0:07:49]} 24. Be5 {[%emt 0:00:43]} d4 {[%emt 0:01:35]} 25. Ne4 {[%emt 0:01:47]} Bxe4 {[%emt 0:00:22]} 26. Qxe4 {[%emt 0:00:17]} Re3 {[%emt 0:00:09]} 27. Qf4 {[%emt 0:04:22]} Qd5 {[%emt 0:00:33]} 28. Rae1 {[%emt 0:04:19]} Rxh3+ {[%emt 0:02:08]} 29. Kg1 {[%emt 0:00:07]} d3+ {[%emt 0:00:17]} 30. Rf2 {[%emt 0:00:07]} Bxf2+ {[%emt 0:01:29]} 31. Kxf2 {[%emt 0:06:25]} d2 {[%emt 0:02:31]} 32. Rd1 {[%emt 0:00:16]} Rd3 {[%emt 0:00:26]} 33. f6 {[%emt 0:01:05]} gxf6 {[%emt 0:03:32]} 34. Bxf6 {[%emt 0:00:33]} Qd4+ {[%emt 0:00:36]} 35. Qxd4 {[%emt 0:00:28]} Rxd4 {[%emt 0:00:04]} 36. Ke3 {[%emt 0:00:11]} Rd7 {[%emt 0:00:21]} 37. Bc3 {[%emt 0:00:43]} Re8+ {[%emt 0:00:35]} 38. Kf2 {[%emt 0:00:26]} Re1 {[%emt 0:01:18]} 39. Rxd2 {[%emt 0:01:06]} Rxd2+ {[%emt 0:00:11]} 40. Bxd2 {[%emt 0:00:00]} Re6 {[%emt 0:00:00]} 41. g3 {[%emt 0:12:43]} Kf7 {[%emt 0:00:22]} 42. Bc3 {[%emt 0:02:19]} Kg6 {[%emt 0:00:52]} 43. Kf3 {[%emt 0:00:27]} Rc6 {[%emt 0:01:52]} 44. Ke4 {[%emt 0:08:34]} Kg5 {[%emt 0:00:57]} 45. Be5 {[%emt 0:05:39]} Kg4 {[%emt 0:00:32]} 46. Kd5 {[%emt 0:00:14]} Ra6 {[%emt 0:00:51]} 47. b4 {[%emt 0:03:12]} Rxa2 {[%emt 0:00:22]} 48. Kd6 {[%emt 0:01:21]} Ra6+ {[%emt 0:01:23]} 49. Kc5 {[%emt 0:00:58]} Rg6 {[%emt 0:01:04]} 50. Bb8 {[%emt 0:00:30]} Rg5+ {[%emt 0:01:05]} 51. Kc4 {[%emt 0:00:41]} a6 {[%emt 0:00:15]} 52. Bf4 {[%emt 0:00:23]} Rf5 {[%emt 0:00:19]} 53. Bc7 {[%emt 0:00:14]} h5 {[%emt 0:00:17]} 54. Bb8 {[%emt 0:00:15]} b5+ {[%emt 0:03:10]} 55. Kd4 {[%emt 0:00:28]} Rf3 {[%emt 0:00:09]} 56. Kc5 {[%emt 0:00:18]} Rxg3 {[%emt 0:00:08]} 57. Kd4 0-1

[Event "HUN-ch U8-U18 2019"]
[Site "Balatonlelle"]
[Date "2019.06.22"]
[Round "2.18"]
[White "Szegedy, Matyas"]
[Black "Konyves, Almos"]
[Result "1-0"]
[ECO "C46"]
[WhiteElo "1806"]
[BlackElo "2125"]
[Annotator "NA"]
[PlyCount "95"]
[EventDate "2019.06.21"]
[EventType "swiss"]
[EventCountry "HUN"]
[SourceTitle "playchess.com"]
[Source "ChessBase"]
[SourceQuality "1"]
[TimeControl "40/5400+30:1800+30"]

1. e4 {[%emt 0:00:02]} e5 {[%emt 0:00:00]} 2. Nf3 {[%emt 0:00:09]} Nc6 {[%emt 0:00:00]} 3. Nc3 {[%emt 0:00:15]} g6 {[%emt 0:00:00]} 4. Bc4 {[%emt 0:01:19]} Bg7 {[%emt 0:00:15]} 5. d3 {[%emt 0:01:16]} Nge7 {[%emt 0:00:32]} 6. Ng5 {[%emt 0:05:47]} O-O {[%emt 0:00:24]} 7. O-O {[%emt 0:08:27]} h6 {[%emt 0:01:25]} 8. Nxf7 {[%emt 0:03:23]} Rxf7 {[%emt 0:00:09]} 9. Bxf7+ {[%emt 0:00:08]} Kxf7 {[%emt 0:00:08]} 10. f4 {[%emt 0:00:05]} exf4 {[%emt 0:04:32]} 11. Bxf4 {[%emt 0:02:21]} Kg8 12. Qf3 {[%emt 0:12:12]} d6 {[%emt 0:11:49]} 13. Nd5 {[%emt 0:16:11]} Be6 {[%emt 0:01:56]} 14. c3 {[%emt 0:04:28]} Kh7 {[%emt 0:27:33]} 15. d4 {[%emt 0:05:58]} Qd7 {[%emt 0:03:24]} 16. Ne3 {[%emt 0:13:17]} Rf8 {[%emt 0:06:01]} 17. Qe2 {[%emt 0:02:14]} Bg8 {[%emt 0:02:07]} 18. Ng4 {[%emt 0:01:49]} d5 {[%emt 0:09:38]} 19. e5 {[%emt 0:08:45]} Be6 {[%emt 0:02:43]} 20. Ne3 {[%emt 0:01:02]} Nf5 {[%emt 0:00:24]} 21. Nxf5 {[%emt 0:03:07]} Bxf5 {[%emt 0:00:06]} 22. h3 {[%emt 0:00:19]} Nd8 {[%emt 0:01:05]} 23. Rad1 {[%emt 0:00:41]} Ne6 {[%emt 0:00:18]} 24. Bh2 {[%emt 0:00:25]} Ng5 {[%emt 0:01:25]} 25. c4 {[%emt 0:05:22]} c6 {[%emt 0:00:27]} 26. cxd5 {[%emt 0:00:41]} Qxd5 {[%emt 0:00:08]} 27. b3 {[%emt 0:00:08]} Bxh3 {[%emt 0:03:03]} 28. Rxf8 {[%emt 0:00:51]} Bxf8 {[%emt 0:00:06]} 29. Bf4 {[%emt 0:00:27]} Ne6 {[%emt 0:04:09]} 30. Be3 {[%emt 0:01:01]} Bf5 {[%emt 0:00:18]} 31. Qf2 {[%emt 0:00:15]} Bg7 {[%emt 0:00:41]} 32. Rc1 {[%emt 0:01:09]} h5 {[%emt 0:03:22]} 33. Qh4 {[%emt 0:01:13]} Qd7 {[%emt 0:01:17]} 34. Rf1 {[%emt 0:00:57]} Nc7 {[%emt 0:00:43]} 35. Re1 {[%emt 0:00:38]} Nd5 {[%emt 0:00:29]} 36. Bf2 {[%emt 0:00:12]} Nb4 {[%emt 0:01:58]} 37. Qg3 {[%emt 0:01:10]} Nd3 {[%emt 0:00:41]} 38. Rd1 {[%emt 0:00:09]} Nxe5 {[%emt 0:00:13]} 39. Qc3 {[%emt 0:00:39]} Ng4 {[%emt 0:00:00]} 40. Bh4 Qe8 41. Re1 Bxd4+ 42. Qxd4 Qf8 43. Re7+ Kg8 44. Qc4+ Kh8 45. Rf7 Qe8 46. Qc3+ Ne5 47. Re7 g5 48. Bxg5 1-0

[Event "HUN-ch U8-U18 2019"]
[Site "Balatonlelle"]
[Date "2019.06.21"]
[Round "2.19"]
[White "Tran, David"]
[Black "Herczeg, Marcell"]
[Result "1-0"]
[ECO "C48"]
[WhiteElo "2078"]
[BlackElo "1783"]
[Annotator "NA"]
[PlyCount "92"]
[EventDate "2019.06.21"]
[EventType "swiss"]
[EventCountry "HUN"]
[SourceTitle "playchess.com"]
[Source "ChessBase"]
[SourceQuality "1"]
[TimeControl "40/5400+30:1800+30"]

1. e4 {[%emt 0:00:01]} e5 {[%emt 0:00:42]} 2. Nf3 {[%emt 0:00:05]} Nc6 {[%emt 0:00:48]} 3. Bb5 {[%emt 0:00:07]} Nf6 {[%emt 0:00:50]} 4. Nc3 {[%emt 0:02:01]} d6 {[%emt 0:04:25]} 5. d4 {[%emt 0:01:00]} exd4 {[%emt 0:01:32]} 6. Nxd4 {[%emt 0:00:07]} Bd7 {[%emt 0:01:05]} 7. f3 {[%emt 0:03:16]} Nxd4 {[%emt 0:06:35]} 8. Bxd7+ {[%emt 0:00:06]} Qxd7 {[%emt 0:00:05]} 9. Qxd4 {[%emt 0:00:04]} Be7 {[%emt 0:02:56]} 10. Bf4 {[%emt 0:00:27]} Nh5 {[%emt 0:25:22]} 11. Be3 {[%emt 0:01:02]} Qc6 {[%emt 0:07:53]} 12. Nd5 {[%emt 0:06:14]} Bf6 {[%emt 0:02:28]} 13. Nxf6+ {[%emt 0:00:20]} Nxf6 {[%emt 0:00:02]} 14. O-O-O {[%emt 0:00:19]} Qa6 {[%emt 0:15:07]} 15. Kb1 {[%emt 0:02:10]} Qb6 {[%emt 0:13:48]} 16. Qd3 {[%emt 0:04:19]} Qc6 {[%emt 0:01:52]} 17. Bd4 {[%emt 0:00:28]} O-O-O {[%emt 0:00:45]} 18. Bxf6 {[%emt 0:00:11]} gxf6 {[%emt 0:00:01]} 19. Qd4 {[%emt 0:00:12]} Kb8 {[%emt 0:02:16]} 20. Qxf6 {[%emt 0:00:13]} Qc4 {[%emt 0:02:13]} 21. Qd4 {[%emt 0:00:53]} Qe6 {[%emt 0:01:12]} 22. Rd3 {[%emt 0:04:11]} h5 {[%emt 0:01:58]} 23. Qd5 {[%emt 0:01:18]} Qg6 {[%emt 0:00:48]} 24. Rb3 {[%emt 0:01:20]} b6 {[%emt 0:00:16]} 25. g3 {[%emt 0:00:14]} Rde8 {[%emt 0:01:58]} 26. a4 {[%emt 0:04:19]} Rhg8 {[%emt 0:04:18]} 27. Rc3 {[%emt 0:01:14]} Re5 {[%emt 0:00:31]} 28. Qc6 {[%emt 0:00:19]} Rc8 {[%emt 0:00:28]} 29. Rd1 {[%emt 0:01:26]} Qg5 {[%emt 0:01:06]} 30. f4 {[%emt 0:00:51]} Qg4 {[%emt 0:00:25]} 31. Rdd3 {[%emt 0:01:07]} Rc5 {[%emt 0:00:23]} 32. Rxc5 {[%emt 0:00:05]} dxc5 {[%emt 0:00:09]} 33. a5 {[%emt 0:00:46]} Qe6 {[%emt 0:00:56]} 34. Qxe6 {[%emt 0:00:11]} fxe6 {[%emt 0:00:01]} 35. a6 {[%emt 0:00:54]} Rg8 {[%emt 0:00:36]} 36. Rd7 {[%emt 0:00:31]} Kc8 {[%emt 0:00:30]} 37. Rh7 {[%emt 0:01:01]} Rg6 {[%emt 0:01:26]} 38. Rxh5 {[%emt 0:00:30]} Kd7 {[%emt 0:00:09]} 39. Rh7+ {[%emt 0:00:54]} Kd6 {[%emt 0:00:22]} 40. f5 {[%emt 0:00:00]} exf5 {[%emt 0:00:00]} 41. exf5 {[%emt 0:00:51]} Rg5 {[%emt 0:00:26]} 42. f6 {[%emt 0:00:33]} Rf5 {[%emt 0:00:38]} 43. f7 {[%emt 0:00:10]} Ke7 {[%emt 0:00:04]} 44. f8=Q+ {[%emt 0:00:16]} Kxf8 {[%emt 0:00:05]} 45. Rxc7 {[%emt 0:00:10]} Rf7 {[%emt 0:00:23]} 46. Rxf7+ {[%emt 0:00:07]} Kxf7 {[%emt 0:00:01]} 1-0

[Event "HUN-ch U8-U18 2019"]
[Site "Balatonlelle"]
[Date "2019.06.22"]
[Round "2.19"]
[White "Kovacs, Gabor Etele"]
[Black "Kresz, Adam"]
[Result "0-1"]
[ECO "C06"]
[WhiteElo "2062"]
[BlackElo "1949"]
[Annotator "NA"]
[PlyCount "76"]
[EventDate "2019.06.21"]
[EventType "swiss"]
[EventCountry "HUN"]
[SourceTitle "playchess.com"]
[Source "ChessBase"]
[SourceQuality "1"]
[TimeControl "40/5400+30:1800+30"]

1. e4 {[%emt 0:00:03]} e6 {[%emt 0:00:06]} 2. d4 {[%emt 0:00:07]} d5 {[%emt 0:00:07]} 3. Nd2 {[%emt 0:00:10]} Nf6 {[%emt 0:00:08]} 4. e5 {[%emt 0:00:11]} Nfd7 {[%emt 0:00:08]} 5. c3 {[%emt 0:00:18]} c5 {[%emt 0:00:07]} 6. Bd3 {[%emt 0:00:24]} Nc6 {[%emt 0:00:16]} 7. Ne2 {[%emt 0:00:21]} cxd4 {[%emt 0:00:16]} 8. cxd4 {[%emt 0:00:01]} f6 {[%emt 0:00:19]} 9. exf6 {[%emt 0:00:14]} Nxf6 {[%emt 0:00:07]} 10. Nf3 {[%emt 0:00:27]} Bd6 {[%emt 0:00:24]} 11. O-O {[%emt 0:00:27]} Qc7 {[%emt 0:00:20]} 12. Bg5 {[%emt 0:00:48]} O-O {[%emt 0:00:50]} 13. Nc3 {[%emt 0:00:13]} a6 {[%emt 0:00:09]} 14. Bh4 {[%emt 0:00:12]} g6 {[%emt 0:10:29]} 15. Bg3 {[%emt 0:01:49]} Bxg3 {[%emt 0:02:45]} 16. hxg3 {[%emt 0:00:14]} Qg7 {[%emt 0:00:43]} 17. Rc1 {[%emt 0:09:30]} g5 {[%emt 0:18:02]} 18. Re1 {[%emt 0:22:44]} Ng4 {[%emt 0:12:37]} 19. Qd2 {[%emt 0:36:27]} h6 {[%emt 0:02:23]} 20. Bc2 {[%emt 0:10:27]} Nxf2 {[%emt 0:12:42]} 21. Qxf2 {[%emt 0:00:22]} g4 {[%emt 0:00:15]} 22. Rcd1 {[%emt 0:00:23]} Bd7 {[%emt 0:11:49]} 23. Kh2 {[%emt 0:06:13]} Qf7 {[%emt 0:01:16]} 24. Rf1 {[%emt 0:00:42]} Qh5+ {[%emt 0:04:56]} 25. Kg1 {[%emt 0:00:22]} gxf3 {[%emt 0:03:41]} 26. gxf3 {[%emt 0:00:21]} Rf7 {[%emt 0:02:08]} 27. Kg2 {[%emt 0:01:50]} Raf8 {[%emt 0:02:37]} 28. f4 {[%emt 0:04:35]} Qg4 {[%emt 0:02:37]} 29. Kh2 {[%emt 0:03:12]} Qg7 {[%emt 0:00:51]} 30. a3 {[%emt 0:00:48]} e5 {[%emt 0:01:56]} 31. dxe5 {[%emt 0:00:19]} Nxe5 {[%emt 0:00:15]} 32. Qd4 {[%emt 0:00:46]} Qg4 {[%emt 0:04:37]} 33. Qxd5 {[%emt 0:00:32]} Qh3+ {[%emt 0:00:36]} 34. Kg1 {[%emt 0:00:01]} Bc6 {[%emt 0:00:39]} 35. Bb3 {[%emt 0:01:25]} Ng4 {[%emt 0:01:35]} 36. Rd2 {[%emt 0:00:30]} Ne3 {[%emt 0:02:23]} 37. Rff2 {[%emt 0:00:28]} Nxd5 {[%emt 0:00:38]} 38. Nxd5 {[%emt 0:00:01]} Kh8 {[%emt 0:00:22]} 0-1

[Event "HUN-ch U8-U18 2019"]
[Site "Balatonlelle"]
[Date "2019.06.22"]
[Round "2.20"]
[White "Birovecz, Ben Jordan"]
[Black "Kaloczi, Kristof"]
[Result "0-1"]
[ECO "A40"]
[WhiteElo "1912"]
[BlackElo "2098"]
[Annotator "NA"]
[PlyCount "140"]
[EventDate "2019.06.21"]
[EventType "swiss"]
[EventCountry "HUN"]
[SourceTitle "playchess.com"]
[Source "ChessBase"]
[SourceQuality "1"]
[TimeControl "40/5400+30:1800+30"]

1. d4 {[%emt 0:00:02]} b5 {[%emt 0:00:00]} 2. e4 {[%emt 0:01:21]} Bb7 {[%emt 0:00:14]} 3. Nd2 {[%emt 0:00:59]} a6 {[%emt 0:00:04]} 4. Ngf3 {[%emt 0:07:36]} e6 {[%emt 0:00:24]} 5. Bd3 {[%emt 0:00:31]} d6 {[%emt 0:02:49]} 6. O-O {[%emt 0:03:41]} Nf6 {[%emt 0:02:05]} 7. c3 {[%emt 0:01:53]} Be7 {[%emt 0:01:03]} 8. Qe2 {[%emt 0:07:02]} Nbd7 {[%emt 0:03:45]} 9. a4 {[%emt 0:11:22]} c6 {[%emt 0:08:44]} 10. e5 {[%emt 0:10:58]} dxe5 {[%emt 0:02:00]} 11. Nxe5 {[%emt 0:01:56]} O-O {[%emt 0:03:44]} 12. f4 {[%emt 0:07:27]} bxa4 {[%emt 0:18:29]} 13. Ndf3 {[%emt 0:09:14]} c5 {[%emt 0:01:39]} 14. Ng5 {[%emt 0:08:33]} cxd4 {[%emt 0:04:02]} 15. Nexf7 {[%emt 0:07:12]} Rxf7 {[%emt 0:00:11]} 16. Qxe6 {[%emt 0:16:01]} Bd5 {[%emt 0:03:34]} 17. Qh3 {[%emt 0:00:01]} Nf8 {[%emt 0:10:25]} 18. cxd4 {[%emt 0:02:09]} Bb4 {[%emt 0:02:48]} 19. Nxf7 {[%emt 0:00:22]} Bxf7 {[%emt 0:00:06]} 20. Rxa4 {[%emt 0:01:04]} a5 {[%emt 0:00:41]} 21. Be3 {[%emt 0:00:31]} Nd5 {[%emt 0:08:26]} 22. Raa1 {[%emt 0:00:31]} Qd6 {[%emt 0:04:05]} 23. Rad1 {[%emt 0:00:22]} Re8 {[%emt 0:16:09]} 24. Bc1 {[%emt 0:00:29]} Nf6 {[%emt 0:00:30]} 25. Kh1 {[%emt 0:00:40]} Bh5 {[%emt 0:00:55]} 26. Bc4+ {[%emt 0:00:27]} Kh8 {[%emt 0:00:23]} 27. Bb5 {[%emt 0:00:29]} Rd8 {[%emt 0:00:59]} 28. Rf3 {[%emt 0:00:34]} Bxf3 {[%emt 0:03:35]} 29. gxf3 {[%emt 0:00:02]} Qd5 {[%emt 0:00:52]} 30. Ba4 {[%emt 0:00:38]} Qf7 {[%emt 0:01:37]} 31. Bc2 {[%emt 0:00:28]} Re8 {[%emt 0:00:19]} 32. Qh4 {[%emt 0:00:33]} Ng6 {[%emt 0:00:44]} 33. Qg3 {[%emt 0:00:48]} Nh5 {[%emt 0:00:22]} 34. Qg5 {[%emt 0:00:25]} Nhxf4 {[%emt 0:00:30]} 35. Bxf4 {[%emt 0:00:26]} Qxf4 {[%emt 0:00:23]} 36. Qh5 {[%emt 0:00:40]} Kg8 {[%emt 0:00:45]} 37. Rg1 {[%emt 0:00:32]} Re1 {[%emt 0:00:28]} 38. Qd5+ {[%emt 0:00:20]} Qf7 {[%emt 0:00:34]} 39. Rxe1 Bxe1 {[%emt 0:00:06]} 40. Qd8+ {[%emt 0:00:00]} Qf8 {[%emt 0:00:00]} 41. Qd5+ {[%emt 0:06:50]} Kh8 {[%emt 0:02:21]} 42. Qh5 {[%emt 0:01:17]} Qf6 {[%emt 0:14:33]} 43. Bxg6 {[%emt 0:00:28]} Qxg6 {[%emt 0:00:01]} 44. Qe5 {[%emt 0:00:15]} Qf7 {[%emt 0:00:01]} 45. Qxe1 {[%emt 0:00:46]} Qxf3+ {[%emt 0:00:01]} 46. Kg1 {[%emt 0:00:13]} Qg4+ {[%emt 0:00:05]} 47. Kf1 {[%emt 0:06:06]} Qf5+ {[%emt 0:00:12]} 48. Kg1 {[%emt 0:06:22]} h6 {[%emt 0:00:08]} 49. Qd2 {[%emt 0:05:27]} Qd5 {[%emt 0:01:08]} 50. Qc3 {[%emt 0:00:51]} Kg8 {[%emt 0:03:33]} 51. Qc8+ {[%emt 0:06:26]} Kf7 {[%emt 0:00:10]} 52. Qc7+ {[%emt 0:00:09]} Kg6 {[%emt 0:01:07]} 53. Qc2+ {[%emt 0:01:55]} Kf6 {[%emt 0:03:23]} 54. Qc3 {[%emt 0:00:38]} g5 {[%emt 0:01:20]} 55. Kf2 {[%emt 0:00:42]} h5 {[%emt 0:00:41]} 56. Qe3 {[%emt 0:00:37]} g4 {[%emt 0:05:57]} 57. Qh6+ {[%emt 0:00:30]} Ke7 {[%emt 0:00:18]} 58. Qe3+ {[%emt 0:00:26]} Kf7 {[%emt 0:01:57]} 59. Qf4+ {[%emt 0:00:28]} Kg6 {[%emt 0:00:19]} 60. Qe3 {[%emt 0:00:28]} h4 {[%emt 0:01:01]} 61. Kg1 {[%emt 0:00:43]} h3 {[%emt 0:01:45]} 62. Qe8+ {[%emt 0:00:23]} Kg5 {[%emt 0:00:47]} 63. Qe3+ {[%emt 0:00:34]} Kf5 {[%emt 0:00:31]} 64. Qe5+ {[%emt 0:00:31]} Qxe5 {[%emt 0:00:06]} 65. dxe5 {[%emt 0:00:03]} Kxe5 {[%emt 0:00:05]} 66. Kf2 {[%emt 0:00:07]} a4 {[%emt 0:00:24]} 67. Kg3 {[%emt 0:00:07]} Kf5 {[%emt 0:00:02]} 68. Kh4 {[%emt 0:01:43]} Kf4 {[%emt 0:00:04]} 69. Kh5 {[%emt 0:00:09]} g3 {[%emt 0:00:03]} 70. hxg3+ {[%emt 0:00:09]} Kxg3 {[%emt 0:00:05]} 0-1